fUSD/lending_fUSD_20240301
["ID","MTS","AMOUNT","RATE_DAILY","PERIOD"]
[315995104,1709317851779,-500.0,0.00022356,2]
[315995105,1709317851790,-811.78,0.00022356,2]
[315995106,1709317851800,-1005.15,0.00022356,2]
[315995107,1709317851810,-569.38,0.00022356,2]
[315995108,1709317851820,-405.64642364,0.00022356,2]
[315995109,1709317851830,-500.0,0.00022356,2]
[315995110,1709317851841,-500.0,0.00022356,2]
[315995111,1709317852065,-500.0,0.00022356,2]
[315995112,1709317852076,-500.0,0.00022356,2]
[315995113,1709317852087,-672.8,0.00022356,2]
[315995114,1709317852096,-500.0,0.00022356,2]
[315995115,1709317852107,-500.0,0.00022356,2]
[315995116,1709317852117,-598.32,0.00022356,2]
[315995117,1709317852128,-500.0,0.00022356,2]
[315995118,1709317852138,-617.99,0.00022356,2]
[315995119,1709317852149,-500.0,0.00022356,2]
[315995120,1709317852158,-3205.32,0.00022356,2]
[315995121,1709317852170,-877.57,0.00022356,2]
[315995122,1709317852180,-599.55,0.00022356,2]
[315995123,1709317852189,-151.0,0.00022356,7]
[315995124,1709317852199,-500.0,0.00022356,2]
[315995125,1709317852209,-500.0,0.00022356,2]
[315995126,1709317852219,-500.0,0.00022356,2]
[315995127,1709317852231,-500.0,0.00022356,2]
[315995128,1709317852241,-500.0,0.00022356,2]
[315995129,1709317852250,-500.0,0.00022356,2]
[315995130,1709317852260,-1714.95,0.00022356,2]
[315995131,1709317852270,-500.0,0.00022356,2]
[315995132,1709317852281,-536.15,0.00022356,2]
[315995133,1709317852291,-550.19,0.00022356,2]
[315995134,1709317852301,-628.35,0.00022356,2]
[315995135,1709317852311,-824.61,0.00022356,2]
[315995136,1709317852321,-924.01,0.00022356,2]
[315995137,1709317852330,-500.0,0.00022356,2]
[315995138,1709317852339,-500.0,0.00022356,2]
[315995139,1709317852349,-599.18,0.00022356,2]
[315995140,1709317852358,-500.0,0.00022356,2]
[315995141,1709317852368,-1048.17,0.00022356,2]
[315995142,1709317852378,-625.63,0.00022356,2]
[315995143,1709317852388,-500.0,0.00022356,2]
[315995144,1709317852398,-500.0,0.00022356,2]
[315995145,1709317852408,-830.98,0.00022356,2]
[315995146,1709317852418,-500.0,0.00022356,2]
[315995147,1709317852428,-615.27,0.00022356,2]
[315995148,1709317852438,-500.0,0.00022356,2]
[315995149,1709317852448,-500.0,0.00022356,2]
[315995150,1709317852458,-500.0,0.00022356,2]
[315995151,1709317852468,-500.0,0.00022356,2]
[315995152,1709317852478,-500.0,0.00022356,2]
[315995153,1709317852488,-2854.79,0.00022356,2]
[315995154,1709317852498,-500.0,0.00022356,2]
[315995155,1709317852507,-1399.29,0.00022356,2]
[315995156,1709317852516,-500.0,0.00022356,2]
[315995157,1709317852528,-1726.15,0.00022356,2]
[315995158,1709317852538,-801.83,0.00022356,2]
[315995159,1709317852548,-500.0,0.00022356,2]
[315995160,1709317852560,-500.0,0.00022356,2]
[315995161,1709317852570,-1086.93,0.00022356,2]
[315995162,1709317852580,-564.94,0.00022356,2]
[315995163,1709317852590,-269.41092728,0.00022356,2]
[315995164,1709317852600,-1293.73,0.00022356,2]
[315995165,1709317852610,-500.0,0.00022356,2]
[315995166,1709317852621,-500.0,0.00022356,2]
[315995167,1709317852631,-500.0,0.00022356,2]
[315995168,1709317852641,-500.0,0.00022356,2]
[315995169,1709317852650,-500.0,0.00022356,2]
[315995170,1709317852660,-500.0,0.00022356,2]
[315995171,1709317852671,-500.0,0.00022356,2]
[315995172,1709317852680,-1559.47,0.00022356,2]
[315995173,1709317852690,-500.0,0.00022356,2]
[315995174,1709317852701,-500.0,0.00022356,2]
[315995175,1709317852711,-500.0,0.00022356,2]
[315995176,1709317852721,-2822.15,0.00022356,2]
[315995177,1709317852731,-500.0,0.00022356,2]
[315995178,1709317852741,-213.94,0.00022356,2]
[315995179,1709317852751,-500.0,0.00022356,2]
[315995180,1709317852761,-500.0,0.00022356,2]
[315995181,1709317852772,-500.0,0.00022356,2]
[315995182,1709317852782,-526.91,0.00022356,2]
[315995183,1709317852793,-500.0,0.00022356,2]
[315995184,1709317852804,-500.0,0.00022356,2]
[315995185,1709317852814,-500.0,0.00022356,2]
[315995186,1709317852824,-500.0,0.00022356,2]
[315995187,1709317852834,-500.0,0.00022356,2]
[315995188,1709317852845,-150.0,0.00022386,2]
[315995189,1709317852855,-1000.0,0.000224,2]
[315995190,1709317852866,-1500.0,0.00022403,2]
[315995191,1709317852876,-1500.0,0.00022404,2]
[315995192,1709317852889,-181.27,0.00022415,2]
[315995193,1709317852899,-150.0,0.00022417,2]
[315995194,1709317852911,-150.0,0.00022425,2]
[315995195,1709317852921,-150.0,0.00022425,2]
[315995196,1709317852931,-150.0,0.00022432,2]
[315995197,1709317852941,-150.0,0.00022437,2]
[315995198,1709317852952,-150.0,0.00022447,2]
[315995199,1709317852963,-500.0,0.00022448,2]
[315995200,1709317852973,-197.46252211,0.00022449,3]
[315995201,1709317852983,-359.405978,0.00022449,3]
[315995202,1709317852993,-279.64420347,0.00022449,3]
[315995203,1709317853004,-177.07643499,0.00022449,3]
[315995204,1709317853014,-287.91596759,0.00022449,3]
[315995205,1709317853024,-200.78970697,0.00022449,3]
[315995206,1709317853034,-234.42396083,0.00022449,3]
[315995207,1709317853045,-196.92028349,0.00022449,3]
[315995208,1709317853056,-150.0,0.0002245,2]
[315995209,1709317853066,-500.0,0.00022464,2]
[315995210,1709317853075,-500.0,0.00022465,2]
[315995211,1709317853084,-500.0,0.00022465,2]
[315995212,1709317853095,-500.0,0.00022465,2]
[315995213,1709317853105,-500.0,0.00022465,2]
[315995214,1709317853115,-500.0,0.00022465,2]
[315995215,1709317853125,-500.0,0.00022465,2]
[315995216,1709317853135,-1110.01,0.00022465,2]
[315995217,1709317853145,-500.0,0.00022465,2]
[315995218,1709317853156,-351.7391348,0.00022465,2]
[315995219,1709317853166,-500.0,0.00022465,2]
[315995220,1709317853176,-500.0,0.00022465,2]
[315995221,1709317853185,-500.0,0.00022465,2]
[315995222,1709317853196,-500.0,0.00022465,2]
[315995223,1709317853206,-500.0,0.00022465,2]
[315995224,1709317853216,-500.0,0.00022465,2]
[315995225,1709317853225,-500.0,0.00022465,2]
[315995226,1709317853235,-500.0,0.00022465,2]
[315995227,1709317853246,-500.0,0.00022465,2]
[315995228,1709317853255,-500.0,0.00022465,2]
[315995229,1709317853265,-500.0,0.00022465,2]
[315995230,1709317853276,-500.0,0.00022465,2]
[315995231,1709317853287,-2461.82,0.00022465,2]
[315995232,1709317853298,-150.0,0.00022465,2]
[315995233,1709317853308,-4465.4,0.00022465,2]
[315995234,1709317853317,-500.0,0.00022465,2]
[315995235,1709317853327,-500.0,0.00022465,2]
[315995236,1709317853337,-500.0,0.00022465,2]
[315995237,1709317853346,-500.0,0.00022465,2]
[315995238,1709317853356,-500.0,0.00022465,2]
[315995239,1709317853365,-353.51,0.00022465,2]
[315995240,1709317853374,-1850.54,0.00022465,2]
[315995241,1709317853384,-500.0,0.00022465,2]
[315995242,1709317853394,-2115.38,0.00022465,2]
[315995243,1709317853404,-500.0,0.00022465,2]
[315995244,1709317853415,-500.0,0.00022465,2]
[315995245,1709317853424,-500.0,0.00022465,2]
[315995246,1709317853434,-500.0,0.00022465,2]
[315995247,1709317853443,-802.17,0.00022465,2]
[315995248,1709317853453,-384.9558018,0.00022465,2]
[315995249,1709317853464,-500.0,0.00022465,2]
[315995250,1709317853474,-500.0,0.00022465,2]
[315995251,1709317853484,-500.0,0.00022465,2]
[315995252,1709317853495,-650.18,0.00022465,2]
[315995253,1709317853505,-500.0,0.00022465,2]
[315995254,1709317853515,-811.78,0.00022465,2]
[315995255,1709317853525,-1005.15,0.00022465,2]
[315995256,1709317853536,-569.38,0.00022465,2]
[315995257,1709317853549,-500.0,0.00022465,2]
[315995258,1709317853559,-500.0,0.00022465,2]
[315995259,1709317853569,-500.0,0.00022465,2]
[315995260,1709317853579,-500.0,0.00022465,2]
[315995261,1709317853588,-672.8,0.00022465,2]
[315995262,1709317853598,-500.0,0.00022465,2]
[315995263,1709317853609,-500.0,0.00022465,2]
[315995264,1709317853618,-598.32,0.00022465,2]
[315995265,1709317853627,-500.0,0.00022465,2]
[315995266,1709317853638,-617.99,0.00022465,2]
[315995267,1709317853647,-3205.32,0.00022465,2]
[315995268,1709317853656,-260.90753426,0.00022465,2]
[315995269,1709317853666,-877.57,0.00022465,2]
[315995270,1709317853676,-599.55,0.00022465,2]
[315995271,1709317853685,-500.0,0.00022465,2]
[315995272,1709317853694,-500.0,0.00022465,2]
[315995273,1709317853704,-500.0,0.00022465,2]
[315995274,1709317853713,-500.0,0.00022465,2]
[315995275,1709317853722,-500.0,0.00022465,2]
[315995276,1709317853732,-500.0,0.00022465,2]
[315995277,1709317853741,-1714.95,0.00022465,2]
[315995278,1709317853750,-500.0,0.00022465,2]
[315995279,1709317853760,-536.15,0.00022465,2]
[315995280,1709317853770,-550.19,0.00022465,2]
[315995281,1709317853779,-628.35,0.00022465,2]
[315995282,1709317853790,-824.61,0.00022465,2]
[315995283,1709317853800,-924.01,0.00022465,2]
[315995284,1709317853809,-500.0,0.00022465,2]
[315995285,1709317853819,-500.0,0.00022465,2]
[315995286,1709317853828,-500.0,0.00022465,2]
[315995287,1709317853838,-599.18,0.00022465,2]
[315995288,1709317853848,-1048.17,0.00022465,2]
[315995289,1709317853858,-625.63,0.00022465,2]
[315995290,1709317853871,-500.0,0.00022465,2]
[315995291,1709317853882,-500.0,0.00022465,2]
[315995292,1709317853891,-830.98,0.00022465,2]
[315995293,1709317853901,-500.0,0.00022465,2]
[315995294,1709317853911,-615.27,0.00022465,2]
[315995295,1709317853920,-500.0,0.00022465,2]
[315995296,1709317853930,-500.0,0.00022465,2]
[315995297,1709317853940,-500.0,0.00022465,2]
[315995298,1709317853950,-500.0,0.00022465,2]
[315995299,1709317853961,-500.0,0.00022465,2]
[315995300,1709317853970,-2854.79,0.00022465,2]
[315995301,1709317853980,-500.0,0.00022465,2]
[315995302,1709317853989,-172.12826,0.00022465,7]
[315995303,1709317853999,-1399.29,0.00022465,2]
[315995304,1709317854008,-500.0,0.00022465,2]
[315995305,1709317854017,-1726.15,0.00022465,2]
[315995306,1709317854027,-801.83,0.00022465,2]
[315995307,1709317854038,-297.08,0.00022465,2]
[315995308,1709317854047,-500.0,0.00022465,2]
[315995309,1709317854057,-1086.93,0.00022465,2]
[315995310,1709317854066,-564.94,0.00022465,2]
[315995311,1709317854075,-1293.73,0.00022465,2]
[315995312,1709317854084,-500.0,0.00022465,2]
[315995313,1709317854093,-500.0,0.00022465,2]
[315995314,1709317854103,-500.0,0.00022465,2]
[315995315,1709317854112,-300.47,0.00022465,2]
[315995316,1709317854121,-500.0,0.00022465,2]
[315995317,1709317854130,-500.0,0.00022465,2]
[315995318,1709317854140,-500.0,0.00022465,2]
[315995319,1709317854149,-1559.47,0.00022465,2]
[315995320,1709317854158,-500.0,0.00022465,2]
[315995321,1709317854167,-367.38168457,0.00022465,2]
[315995322,1709317854177,-500.0,0.00022465,2]
[315995323,1709317854187,-2822.15,0.00022465,2]
[315995324,1709317854196,-500.0,0.00022465,2]
[315995325,1709317854205,-500.0,0.00022465,2]
[315995326,1709317854215,-500.0,0.00022465,2]
[315995327,1709317854224,-500.0,0.00022465,2]
[315995328,1709317854233,-526.91,0.00022465,2]
[315995329,1709317854243,-500.0,0.00022465,2]
[315995330,1709317854253,-500.0,0.00022465,2]
[315995331,1709317854262,-151.0,0.00022465,7]
[315995332,1709317854271,-500.0,0.00022465,2]
[315995333,1709317854281,-500.0,0.00022465,2]
[315995334,1709317854291,-500.0,0.00022465,2]
[315995335,1709317854300,-1000.0,0.000225,2]
[315995336,1709317854310,-1000.0,0.000225,2]
[315995337,1709317854320,-1000.0,0.000225,2]
[315995338,1709317854329,-295.0,0.00022505,2]
[315995339,1709317854339,-562.287,0.00022521,2]
[315995340,1709317854349,-838.414,0.00022521,2]
[315995341,1709317854359,-8496.811,0.00022521,2]
[315995342,1709317854367,-1167.307,0.00022521,2]
[315995343,1709317854377,-181.27,0.00022524,2]
[315995344,1709317854386,-150.0,0.00022537,2]
[315995345,1709317854396,-150.0,0.00022548,2]
[315995346,1709317854410,-178.0,0.00022548,2]
[315995347,1709317854424,-500.0,0.00022575,2]
[315995348,1709317854437,-500.0,0.00022575,2]
[315995349,1709317854450,-527.64388869,0.00022575,2]
[315995350,1709317854463,-500.0,0.00022575,2]
[315995351,1709317854473,-500.0,0.00022575,2]
[315995352,1709317854483,-179.33845512,0.00022575,2]
[315995353,1709317854495,-1110.01,0.00022575,2]
[315995354,1709317854507,-500.0,0.00022575,2]
[315995355,1709317854520,-500.0,0.00022575,2]
[315995356,1709317854532,-500.0,0.00022575,2]
[315995357,1709317854547,-500.0,0.00022575,2]
[315995358,1709317854559,-500.0,0.00022575,2]
[315995359,1709317854571,-500.0,0.00022575,2]
[315995360,1709317854584,-500.0,0.00022575,2]
[315995361,1709317854596,-500.0,0.00022575,2]
[315995362,1709317854607,-500.0,0.00022575,2]
[315995363,1709317854619,-500.0,0.00022575,2]
[315995364,1709317854632,-500.0,0.00022575,2]
[315995365,1709317854645,-500.0,0.00022575,2]
[315995366,1709317854657,-500.0,0.00022575,2]
[315995367,1709317854669,-2461.82,0.00022575,2]
[315995368,1709317854682,-150.0,0.00022575,2]
[315995369,1709317854694,-4465.4,0.00022575,2]
[315995370,1709317854707,-500.0,0.00022575,2]
[315995371,1709317854719,-500.0,0.00022575,2]
[315995372,1709317854730,-500.0,0.00022575,2]
[315995373,1709317854740,-212.53550097,0.00022575,2]
[315995374,1709317854751,-1850.54,0.00022575,2]
[315995375,1709317854766,-500.0,0.00022575,2]
[315995376,1709317854778,-2115.38,0.00022575,2]
[315995377,1709317854790,-500.0,0.00022575,2]
[315995378,1709317854804,-500.0,0.00022575,2]
[315995379,1709317854816,-500.0,0.00022575,2]
[315995380,1709317854829,-500.0,0.00022575,2]
[315995381,1709317854842,-802.17,0.00022575,2]
[315995382,1709317854853,-500.0,0.00022575,2]
[315995383,1709317854866,-500.0,0.00022575,2]
[315995384,1709317854879,-327.22775299,0.00022575,2]
[315995385,1709317854892,-650.18,0.00022575,2]
[315995386,1709317854903,-500.0,0.00022575,2]
[315995387,1709317854916,-811.78,0.00022575,2]
[315995388,1709317854932,-1005.15,0.00022575,2]
[315995389,1709317854945,-569.38,0.00022575,2]
[315995390,1709317854958,-500.0,0.00022575,2]
[315995391,1709317854973,-500.0,0.00022575,2]
[315995392,1709317854984,-500.0,0.00022575,2]
[315995393,1709317854996,-500.0,0.00022575,2]
[315995394,1709317855007,-672.8,0.00022575,2]
[315995395,1709317855019,-181.4,0.00022575,2]
[315995396,1709317855030,-335.23300004,0.00022575,2]
[315995397,1709317855043,-598.32,0.00022575,2]
[315995398,1709317855054,-500.0,0.00022575,2]
[315995399,1709317855067,-617.99,0.00022575,2]
[315995400,1709317855078,-3205.32,0.00022575,2]
[315995401,1709317855093,-877.57,0.00022575,2]
[315995402,1709317855105,-599.55,0.00022575,2]
[315995403,1709317855117,-500.0,0.00022575,2]
[315995404,1709317855129,-500.0,0.00022575,2]
[315995405,1709317855140,-500.0,0.00022575,2]
[315995406,1709317855151,-500.0,0.00022575,2]
[315995407,1709317855164,-500.0,0.00022575,2]
[315995408,1709317855176,-1714.95,0.00022575,2]
[315995409,1709317855188,-569.43370772,0.00022575,2]
[315995410,1709317855200,-500.0,0.00022575,2]
[315995411,1709317855212,-536.15,0.00022575,2]
[315995412,1709317855224,-550.19,0.00022575,2]
[315995413,1709317855235,-628.35,0.00022575,2]
[315995414,1709317855247,-824.61,0.00022575,2]
[315995415,1709317855257,-924.01,0.00022575,2]
[315995416,1709317855268,-500.0,0.00022575,2]
[315995417,1709317855279,-500.0,0.00022575,2]
[315995418,1709317855292,-500.0,0.00022575,2]
[315995419,1709317855304,-599.18,0.00022575,2]
[315995420,1709317855315,-1048.17,0.00022575,2]
[315995421,1709317855326,-625.63,0.00022575,2]
[315995422,1709317855337,-592.21473089,0.00022575,2]
[315995423,1709317855348,-500.0,0.00022575,2]
[315995424,1709317855360,-830.98,0.00022575,2]
[315995425,1709317855371,-615.27,0.00022575,2]
[315995426,1709317855382,-500.0,0.00022575,2]
[315995427,1709317855393,-500.0,0.00022575,2]
[315995428,1709317855405,-500.0,0.00022575,2]
[315995429,1709317855416,-500.0,0.00022575,2]
[315995430,1709317855427,-500.0,0.00022575,2]
[315995431,1709317855438,-500.0,0.00022575,2]
[315995432,1709317855449,-2854.79,0.00022575,2]
[315995433,1709317855461,-500.0,0.00022575,2]
[315995434,1709317855472,-1399.29,0.00022575,2]
[315995435,1709317855483,-309.79,0.00022575,2]
[315995436,1709317855494,-1726.15,0.00022575,2]
[315995437,1709317855506,-801.83,0.00022575,2]
[315995438,1709317855518,-500.0,0.00022575,2]
[315995439,1709317855529,-1086.93,0.00022575,2]
[315995440,1709317855542,-564.94,0.00022575,2]
[315995441,1709317855554,-1293.73,0.00022575,2]
[315995442,1709317855565,-500.0,0.00022575,2]
[315995443,1709317855576,-215.4931571,0.00022575,2]
[315995444,1709317855586,-627.29731172,0.00022575,2]
[315995445,1709317855597,-500.0,0.00022575,2]
[315995446,1709317855609,-500.0,0.00022575,2]
[315995447,1709317855622,-500.0,0.00022575,2]
[315995448,1709317855634,-1559.47,0.00022575,2]
[315995449,1709317855646,-500.0,0.00022575,2]
[315995450,1709317855657,-500.0,0.00022575,2]
[315995451,1709317855668,-2822.15,0.00022575,2]
[315995452,1709317855678,-500.0,0.00022575,2]
[315995453,1709317855689,-500.0,0.00022575,2]
[315995454,1709317855701,-500.0,0.00022575,2]
[315995455,1709317855712,-500.0,0.00022575,2]
[315995456,1709317855723,-526.91,0.00022575,2]
[315995457,1709317855734,-500.0,0.00022575,2]
[315995458,1709317855746,-500.0,0.00022575,2]
[315995459,1709317855758,-500.0,0.00022575,2]
[315995460,1709317855769,-500.0,0.00022575,2]
[315995461,1709317855780,-500.0,0.00022575,2]
[315995462,1709317855792,-234.50972629,0.000226,2]
[315995463,1709317855803,-2000.0,0.000226,2]
[315995464,1709317855815,-246.07,0.000226,2]
[315995465,1709317855826,-150.0,0.00022602,2]
[315995466,1709317855837,-180.0,0.00022603,2]
[315995467,1709317855848,-150.0,0.0002262,2]
[315995468,1709317855859,-181.27,0.00022633,2]
[315995469,1709317855875,-184.65105632,0.00022644,2]
[315995470,1709317855886,-1500.0,0.0002268,2]
[315995471,1709317855897,-500.0,0.00022684,2]
[315995472,1709317855907,-500.0,0.00022684,2]
[315995473,1709317855918,-500.0,0.00022684,2]
[315995474,1709317855930,-230.60901651,0.00022684,2]
[315995475,1709317855942,-1110.01,0.00022684,2]
[315995476,1709317855954,-500.0,0.00022684,2]
[315995477,1709317855966,-500.0,0.00022684,2]
[315995478,1709317855978,-500.0,0.00022684,2]
[315995479,1709317855989,-595.13976359,0.00022684,2]
[315995480,1709317856003,-500.0,0.00022684,2]
[315995481,1709317856014,-500.0,0.00022684,2]
[315995482,1709317856033,-500.0,0.00022684,2]
[315995483,1709317856049,-500.0,0.00022684,2]
[315995484,1709317856061,-500.0,0.00022684,2]
[315995485,1709317856072,-500.0,0.00022684,2]
[315995486,1709317856084,-500.0,0.00022684,2]
[315995487,1709317856095,-224.63271249,0.00022684,2]
[315995488,1709317856107,-539.88102746,0.00022684,2]
[315995489,1709317856118,-2461.82,0.00022684,2]
[315995490,1709317856131,-150.0,0.00022684,2]
[315995491,1709317856152,-4465.4,0.00022684,2]
[315995492,1709317856163,-500.0,0.00022684,2]
[315995493,1709317856175,-500.0,0.00022684,2]
[315995494,1709317856186,-500.0,0.00022684,2]
[315995495,1709317856197,-1850.54,0.00022684,2]
[315995496,1709317856208,-500.0,0.00022684,2]
[315995497,1709317856220,-2115.38,0.00022684,2]
[315995498,1709317856231,-500.0,0.00022684,2]
[315995499,1709317856242,-500.0,0.00022684,2]
[315995500,1709317856253,-500.0,0.00022684,2]
[315995501,1709317856264,-500.0,0.00022684,2]
[315995502,1709317856275,-802.17,0.00022684,2]
[315995503,1709317856286,-168.31240595,0.00022684,2]
[315995504,1709317856298,-500.0,0.00022684,2]
[315995505,1709317856309,-650.18,0.00022684,2]
[315995506,1709317856320,-500.0,0.00022684,2]
[315995507,1709317856331,-811.78,0.00022684,2]
[315995508,1709317856341,-1005.15,0.00022684,2]
[315995509,1709317856352,-569.38,0.00022684,2]
[315995510,1709317856363,-500.0,0.00022684,2]
[315995511,1709317856375,-500.0,0.00022684,2]
[315995512,1709317856386,-500.0,0.00022684,2]
[315995513,1709317856396,-154.84741043,0.00022684,2]
[315995514,1709317856407,-672.8,0.00022684,2]
[315995515,1709317856417,-598.32,0.00022684,2]
[315995516,1709317856428,-500.0,0.00022684,2]
[315995517,1709317856438,-617.99,0.00022684,2]
[315995518,1709317856449,-877.57,0.00022684,2]
[315995519,1709317856460,-3205.32,0.00022684,2]
[315995520,1709317856471,-599.55,0.00022684,2]
[315995521,1709317856481,-500.0,0.00022684,2]
[315995522,1709317856492,-500.0,0.00022684,2]
[315995523,1709317856503,-500.0,0.00022684,2]
[315995524,1709317856513,-500.0,0.00022684,2]
[315995525,1709317856524,-500.0,0.00022684,2]
[315995526,1709317856535,-1714.95,0.00022684,2]
[315995527,1709317856547,-536.15,0.00022684,2]
[315995528,1709317856558,-500.0,0.00022684,2]
[315995529,1709317856568,-550.19,0.00022684,2]
[315995530,1709317856579,-628.35,0.00022684,2]
[315995531,1709317856590,-824.61,0.00022684,2]
[315995532,1709317856600,-924.01,0.00022684,2]
[315995533,1709317856610,-500.0,0.00022684,2]
[315995534,1709317856622,-639.6953257,0.00022684,2]
[315995535,1709317856632,-500.0,0.00022684,2]
[315995536,1709317856643,-599.18,0.00022684,2]
[315995537,1709317856653,-1048.17,0.00022684,2]
[315995538,1709317856664,-625.63,0.00022684,2]
[315995539,1709317856675,-500.0,0.00022684,2]
[315995540,1709317856686,-830.98,0.00022684,2]
[315995541,1709317856697,-615.27,0.00022684,2]
[315995542,1709317856708,-500.0,0.00022684,2]
[315995543,1709317856719,-500.0,0.00022684,2]
[315995544,1709317856730,-500.0,0.00022684,2]
[315995545,1709317856740,-500.0,0.00022684,2]
[315995546,1709317856752,-500.0,0.00022684,2]
[315995547,1709317856762,-500.0,0.00022684,2]
[315995548,1709317856773,-2854.79,0.00022684,2]
[315995549,1709317856783,-150.0,0.00022684,2]
[315995550,1709317856794,-500.0,0.00022684,2]
[315995551,1709317856804,-1399.29,0.00022684,2]
[315995552,1709317856814,-1726.15,0.00022684,2]
[315995553,1709317856825,-801.83,0.00022684,2]
[315995554,1709317856835,-500.0,0.00022684,2]
[315995555,1709317856845,-1086.93,0.00022684,2]
[315995556,1709317856856,-564.94,0.00022684,2]
[315995557,1709317856870,-1293.73,0.00022684,2]
[315995558,1709317856883,-500.0,0.00022684,2]
[315995559,1709317856908,-500.0,0.00022684,2]
[315995560,1709317856932,-500.0,0.00022684,2]
[315995561,1709317856956,-500.0,0.00022684,2]
[315995562,1709317856980,-1559.47,0.00022684,2]
[315995563,1709317857006,-500.0,0.00022684,2]
[315995564,1709317857032,-500.0,0.00022684,2]
[315995565,1709317857044,-2822.15,0.00022684,2]
[315995566,1709317857056,-582.99489301,0.00022684,2]
[315995567,1709317857067,-500.0,0.00022684,2]
[315995568,1709317857078,-500.0,0.00022684,2]
[315995569,1709317857090,-526.91,0.00022684,2]
[315995570,1709317857101,-500.0,0.00022684,2]
[315995571,1709317857113,-500.0,0.00022684,2]
[315995572,1709317857123,-500.0,0.00022684,2]
[315995573,1709317857135,-165.65307871,0.00022684,2]
[315995574,1709317857146,-500.0,0.00022684,2]
[315995575,1709317857158,-500.0,0.00022684,2]
[315995576,1709317857170,-153.0,0.0002269,2]
[315995577,1709317857182,-150.0,0.0002269,2]
[315995578,1709317857193,-150.0,0.00022694,2]
[315995579,1709317857203,-1000.0,0.000227,2]
[315995580,1709317857217,-3234.75723517,0.00022704,2]
[315995581,1709317857229,-250.43,0.00022717,2]
[315995582,1709317857241,-150.0,0.00022737,2]
[315995583,1709317857252,-168.63,0.0002274,2]
[315995584,1709317857262,-166.32,0.0002274,2]
[315995585,1709317857273,-181.27,0.00022741,2]
[315995586,1709317857621,-150.0,0.00022747,2]
[315995587,1709317857648,-200.0,0.00022757,2]
[315995588,1709317857660,-800.0,0.00022757,2]
[315995589,1709317857671,-200.0,0.00022757,2]
[315995590,1709317857681,-2003.23903165,0.00022775,2]
[315995591,1709317857692,-150.0,0.00022779,2]
[315995592,1709317857702,-150.0,0.00022783,2]
[315995593,1709317857714,-500.0,0.00022793,2]
[315995594,1709317857723,-393.6443329,0.00022794,2]
[315995595,1709317857733,-500.0,0.00022794,2]
[315995596,1709317857743,-500.0,0.00022794,2]
[315995597,1709317857752,-1110.01,0.00022794,2]
[315995598,1709317857763,-500.0,0.00022794,2]
[315995599,1709317857773,-500.0,0.00022794,2]
[315995600,1709317857782,-500.0,0.00022794,2]
[315995601,1709317857793,-500.0,0.00022794,2]
[315995602,1709317857802,-500.0,0.00022794,2]
[315995603,1709317857812,-500.0,0.00022794,2]